bitfinex/quotes_ETHUSD_20240810
["timestamp","ask_amount","ask_price","bid_price","bid_amount"]
[1723320868608,3.07196,2608.3,2607.9,2.4518]
[1723320868848,0.0853599,2608.0,2607.9,2.4518]
[1723320869034,3.07196,2608.3,2607.9,2.4518]
[1723320869208,0.0853599,2608.0,2607.9,2.4518]
[1723320869416,3.07211,2608.1,2607.9,2.4518]
[1723320869609,0.0853599,2608.0,2607.9,2.4518]
[1723320874005,1.91704,2608.2,2607.9,2.4518]
[1723320874240,0.08534063,2608.0,2607.9,2.4518]
[1723320874433,3.07198,2608.3,2607.9,2.4518]
[1723320874937,0.08545559,2608.2,2607.9,2.4518]
[1723320875139,3.07198,2608.3,2607.9,2.4518]
[1723320875341,0.0853264,2608.1,2607.9,2.4518]
[1723320875507,3.07198,2608.3,2607.9,2.4518]
[1723320875711,0.08521901,2608.0,2607.9,2.4518]
[1723320876011,3.07198,2608.3,2607.9,2.4518]
[1723320876212,0.08519721,2608.0,2607.9,2.4518]
[1723320876442,3.07198,2608.3,2607.9,2.4518]
[1723320876640,0.08517343,2608.0,2607.9,2.4518]
[1723320876947,0.08515163,2608.0,2607.9,2.4518]
[1723320877143,3.07198,2608.3,2607.9,2.4518]
[1723320877349,0.08517539,2608.0,2607.9,2.4518]
[1723320877647,1.155,2608.2,2607.9,2.4518]
[1723320877854,0.08386306,2608.0,2607.9,2.4518]
[1723320878010,1.155,2608.2,2607.9,2.4518]
[1723320878229,0.08386306,2608.0,2607.9,2.4518]
[1723320878628,1.155,2608.2,2607.9,2.4518]
[1723320878863,0.08388308,2608.0,2607.9,2.4518]
[1723320879324,1.155,2608.2,2607.9,2.4518]
[1723320879523,0.0839031,2608.0,2607.9,2.4518]
[1723320879726,1.155,2608.2,2607.9,2.4518]
[1723320879938,0.0839031,2608.0,2607.9,2.4518]
[1723320880263,1.155,2608.2,2607.9,2.4518]
[1723320880729,0.08404682,2608.1,2607.9,2.4518]
[1723320897375,0.3996495,2608.1,2607.9,2.4518]
[1723320897788,1.91741,2607.7,2607.2,2.3726]
[1723320898005,1.155,2607.6,2607.2,2.3726]
[1723320898207,1.23881995,2607.6,2607.2,2.3726]
[1723320898897,1.23881995,2607.6,2607.2,1.91776]
[1723320899064,1.23881995,2607.6,2607.3,2.3726]
[1723320899269,0.08381995,2607.6,2607.3,2.3726]
[1723320899683,3.07237,2607.8,2607.3,2.3726]
[1723320899858,0.08479257,2607.5,2607.3,2.3726]
[1723320900060,3.07237,2607.8,2607.3,2.3726]
[1723320900573,0.08371146,2607.7,2607.3,2.3726]
[1723320900784,3.07237,2607.8,2607.3,2.3726]
[1723320901007,0.08487622,2607.6,2607.3,2.3726]
[1723320901175,3.571328,2607.8,2607.3,2.3726]
[1723320901369,0.08479257,2607.5,2607.3,2.3726]
[1723320901573,3.571328,2607.8,2607.3,2.3726]
[1723320901574,3.07237,2607.8,2607.3,2.3726]
[1723320901763,0.08470892,2607.4,2607.3,2.3726]
[1723320901960,3.07237,2607.8,2607.3,2.3726]
[1723320902160,0.08346037,2607.4,2607.3,2.3726]
[1723320902385,3.07237,2607.8,2607.3,2.3726]
[1723320902554,0.08343658,2607.4,2607.3,2.3726]
[1723320902759,3.07237,2607.8,2607.3,2.3726]
[1723320902954,0.08341279,2607.4,2607.3,2.3726]
[1723320903187,1.155,2607.8,2607.4,2.3726]
[1723320903499,3.07232,2607.8,2607.4,2.3726]
[1723320904158,1.91721,2608.0,2607.4,2.3726]
[1723320904355,4.9169,2608.4,2607.7,2.3726]
[1723320904665,3.0719,2608.4,2607.8,1.91728]
[1723320904871,3.0719,2608.4,2607.9,2.3726]
[1723320905856,1.91696,2608.3,2607.9,2.3726]
[1723320907100,3.0719,2608.4,2607.9,2.3726]
[1723320907397,4.10909,2608.4,2607.9,2.3726]
[1723320907587,6.02604,2608.4,2607.9,2.3726]
[1723320907782,1.91697,2608.3,2607.9,2.3726]
[1723320907985,3.07215,2608.1,2607.9,2.3726]
[1723320908188,0.307215,2608.0,2607.9,2.3726]
[1723320908387,3.07215,2608.1,2607.9,2.3726]
[1723320908593,1.155,2608.1,2607.9,2.3726]
[1723320910097,3.07214,2608.1,2607.9,2.3726]
[1723320912401,1.91729,2607.9,2607.5,2.3841]
[1723320912714,4.9896,2607.9,2607.5,2.3841]
[1723320913292,1.91732,2607.8,2607.5,2.3841]
[1723320915508,0.08082948,2607.7,2607.5,2.3841]
[1723320915679,1.91732,2607.8,2607.5,2.3841]
[1723320916018,1.91747,2607.6,2607.5,2.3841]
[1723320916524,1.99709594,2607.6,2607.5,2.3841]
[1723320919081,0.07962594,2607.6,2607.5,2.3841]
[1723320919514,1.91727,2607.9,2607.5,2.3841]
[1723320919715,0.0794555,2607.6,2607.5,2.3841]
[1723320919888,1.91727,2607.9,2607.5,2.82194267]
[1723320920504,0.07959908,2607.8,2607.5,2.82194267]
[1723320921226,3.07219,2608.0,2607.5,2.82194267]
[1723320921389,0.07949161,2607.7,2607.5,2.82194267]
[1723320921591,3.07219,2608.0,2607.5,2.82194267]
[1723320921813,0.07938412,2607.6,2607.5,2.3841]
[1723320922008,3.07207,2608.2,2607.5,2.3841]
[1723320922316,1.9171,2608.1,2607.6,2.455]
[1723320923208,2.22431,2608.1,2607.6,2.455]
[1723320923822,1.91705,2608.2,2607.7,2.455]
[1723320924909,1.91705,2608.2,2607.7,2.53167278]
[1723320925117,1.91705,2608.2,2607.7,2.455]
[1723320927631,3.83413,2608.2,2607.7,2.455]
[1723320928628,1.91705,2608.2,2607.7,2.455]
[1723320930315,3.83413,2608.2,2607.7,2.455]
[1723320930599,0.08100162,2608.1,2607.7,2.455]
[1723320930834,3.15313162,2608.1,2607.7,2.455]
[1723320930995,1.91718,2608.0,2607.7,2.455]
[1723320931329,1.91732,2607.8,2607.7,2.455]
[1723320931709,1.99711883,2607.8,2607.7,2.455]
[1723320933727,1.99711883,2607.8,2607.5,2.3063]
[1723320933945,4.99002,2607.6,2607.5,2.3063]
[1723320934429,5.07061706,2607.6,2607.5,2.3063]
[1723320938659,5.07061706,2607.6,2606.9,1.91793]
[1723320938660,1.91765,2607.4,2606.9,2.3731]
[1723320938830,1.91769,2607.3,2606.9,2.3731]
[1723320939156,1.99691812,2607.3,2606.9,2.3731]
[1723320939353,1.99691812,2607.3,2606.9,3.109529]
[1723320939513,1.99691812,2607.3,2607.0,2.3731]
[1723320939708,0.07922812,2607.3,2607.0,2.3731]
[1723320940149,1.91758,2607.5,2607.0,2.3731]
[1723320940328,0.08034546,2607.2,2607.0,2.8758499]
[1723320940526,1.91762,2607.4,2607.0,2.3731]
[1723320940733,0.08026179,2607.1,2607.0,2.3731]
[1723320940928,1.91762,2607.4,2607.0,2.3731]
[1723320941334,0.08042912,2607.3,2607.0,2.3731]
[1723320948362,1.99813912,2607.3,2607.0,2.3731]
[1723320955450,3.83566,2607.1,2607.0,2.3731]
[1723320955855,3.91136456,2607.1,2607.0,2.3731]
[1723320956302,1.91804,2606.9,2606.4,2.4964]
[1723320956530,3.07304,2606.9,2606.4,2.4964]
[1723320956655,0.07545334,2606.8,2606.4,2.937876]
[1723320957251,1.99352334,2606.8,2606.4,2.937876]
[1723320958797,1.91814,2606.7,2606.4,2.4964]
[1723320959006,3.91264497,2606.7,2606.4,2.4964]
[1723320959207,1.91821,2606.6,2606.4,2.4964]
[1723320959509,1.99445448,2606.6,2606.4,2.4964]
[1723320962238,0.07624448,2606.6,2606.4,2.4964]
[1723320962825,1.99445448,2606.6,2606.4,2.4964]
[1723320964741,0.07624448,2606.6,2606.4,2.4964]
[1723320966137,0.07624448,2606.6,2606.4,2.74604]
[1723320966505,1.91801,2606.9,2606.4,2.74604]
[1723320966704,0.07501497,2606.5,2606.4,2.74604]
[1723320966904,1.91801,2606.9,2606.4,2.74604]
[1723320967425,1.91801,2606.9,2606.4,2.24471364]
[1723320967426,0.07645119,2606.8,2606.4,2.24471364]
[1723320967626,0.07645119,2606.8,2606.5,2.4919]
[1723320967802,0.07645119,2606.8,2606.5,3.08106136]
[1723320967998,7.3,2607.2,2606.7,1.91813]
[1723320968304,9.21777,2607.2,2606.8,2.4919]
[1723320968917,1.91785,2607.1,2606.8,2.4919]
[1723320970758,7.3,2607.2,2606.8,2.4919]
[1723320970955,7.3,2607.2,2606.8,2.94058171]
[1723320971878,9.21777,2607.2,2606.8,2.94058171]
[1723320972883,1.91777,2607.2,2606.8,2.94058171]
[1723320974682,21.68773,2607.3,2606.8,2.94058171]
[1723320975475,0.07667533,2607.2,2606.8,2.94058171]
[1723320975681,21.68773,2607.3,2606.8,2.94058171]
[1723320975867,0.07659165,2607.1,2606.8,2.94058171]
[1723320976180,0.07553755,2607.0,2606.8,2.94058171]
[1723320976338,23.60548,2607.3,2606.8,2.4919]
[1723320976541,1.99445714,2607.2,2606.8,2.4919]
[1723320977383,0.07669714,2607.2,2606.8,2.4919]
[1723320977544,21.68773,2607.3,2606.8,2.4919]
[1723320977740,0.07574864,2607.2,2606.8,2.4919]
[1723320977964,21.68773,2607.3,2606.8,2.4919]
[1723320978181,0.07671896,2607.2,2606.8,2.4919]
[1723320978360,21.68773,2607.3,2606.8,2.4919]
[1723320978687,0.07671896,2607.2,2606.8,2.4919]
[1723320978979,0.07663527,2607.1,2606.8,2.4919]
[1723320979160,1.91773,2607.3,2606.8,2.4919]
[1723320979359,1.99452896,2607.2,2606.8,2.4919]
[1723320979971,1.91788,2607.1,2606.8,2.4919]
[1723320980172,0.0755574,2607.0,2606.8,2.4919]
[1723320980861,1.91798,2606.9,2606.8,2.4919]
[1723320981068,1.91827,2606.6,2606.2,2.4211]
[1723320981282,3.07327,2606.6,2606.2,2.4211]
[1723320981461,0.07442397,2606.5,2606.2,2.4211]
[1723320981656,1.99274397,2606.5,2606.2,2.4211]
[1723320982283,1.9184,2606.4,2606.2,2.4211]
[1723320982780,0.07419129,2606.3,2606.2,2.4211]
[1723320982995,9.21802,2606.9,2606.3,2.4211]
[1723320983196,0.07461008,2606.8,2606.5,2.4211]
[1723320986689,1.99271008,2606.8,2606.5,2.4211]
[1723320986896,1.91813,2606.7,2606.5,2.4211]
[1723320987190,3.0732,2606.6,2606.0,2.4211]
[1723320987392,1.91837,2606.4,2606.0,2.4211]
[1723320987691,3.07337,2606.4,2606.0,2.4211]
[1723320988353,0.07522357,2606.3,2606.0,2.4211]
[1723320991624,3.07352,2606.2,2606.0,2.4211]
[1723320991801,1.91857,2606.1,2606.0,2.4211]
[1723320992000,1.91857,2606.1,2605.6,2.2561]
[1723320992163,1.99220409,2606.1,2605.6,2.2561]
[1723320992358,0.07363409,2606.1,2605.6,4.17503]
[1723320992558,0.07363409,2606.1,2605.7,2.2561]
[1723320992788,0.07363409,2606.1,2605.7,2.8655]
[1723320992993,0.07363409,2606.1,2605.7,2.2561]
[1723320993891,1.91865,2606.0,2605.7,2.2561]
[1723320994123,1.99203973,2606.0,2605.7,2.2561]
[1723320994401,3.91073973,2606.0,2605.7,2.2561]
[1723320994606,1.99203973,2606.0,2605.7,2.2561]
[1723320995207,1.91879,2605.8,2605.7,2.2561]
[1723320995415,1.99193962,2605.8,2605.7,2.2561]
[1723321009019,3.14693962,2605.8,2605.1,1.91925]
[1723321009225,1.9189,2605.7,2605.5,2.3091]
[1723321009425,1.99249133,2605.7,2605.5,2.3091]
[1723321011032,3.91142133,2605.7,2605.5,2.3091]
[1723321011222,1.91894,2605.6,2605.2,2.3237]
[1723321011536,0.07354656,2605.6,2605.5,6.1616]
[1723321011750,0.07354656,2605.6,2605.5,4.31938766]
[1723321011914,7.3,2606.0,2605.6,2.3237]
[1723321012101,7.3,2606.0,2605.6,4.31935741]
[1723321012307,7.3,2606.0,2605.8,2.3237]
[1723321012506,22.84346,2606.3,2605.8,2.3237]
[1723321012806,19.77,2606.3,2605.8,1.99552734]
[1723321013007,1.76557301,2606.8,2605.8,1.99552734]
[1723321013008,9.21817,2606.7,2606.1,2.3237]
[1723321013334,1.155,2606.6,2606.1,2.3237]
[1723321014129,1.155,2606.6,2606.1,2.35047341]
[1723321014343,1.155,2606.6,2606.2,2.3237]
[1723321014848,1.91828,2606.5,2606.2,2.3237]
[1723321015032,1.155,2606.6,2606.2,2.3237]
[1723321017140,7.3,2606.7,2606.2,1.91845]
[1723321017439,7.3,2607.0,2606.6,2.2696]
[1723321017659,7.3,2607.0,2606.6,4.1878]
[1723321017833,7.3,2607.0,2606.7,2.2696]
[1723321018038,19.77,2607.2,2606.8,2.2696]
[1723321018549,21.68776,2607.2,2606.8,2.2696]
[1723321019045,1.91791,2607.0,2606.8,2.2696]
[1723321019908,1.91798,2606.9,2606.8,2.2696]
[1723321020111,1.9181,2606.8,2606.3,2.2696]
[1723321020355,1.9182,2606.6,2606.3,2.2696]
[1723321020725,0.07474488,2606.5,2606.3,2.2696]
[1723321021123,1.9181,2606.8,2606.3,2.2696]
[1723321021342,0.07467635,2606.4,2606.3,2.2696]
[1723321021551,1.9181,2606.8,2606.3,4.606825]
[1723321021731,0.07449665,2606.4,2606.3,6.525245]
[1723321021943,7.3,2606.9,2606.5,2.2696]
[1723321022252,7.3,2606.9,2606.5,2.3789425]
[1723321022412,7.3,2606.9,2606.6,2.2696]
[1723321023439,9.21798,2606.9,2606.6,2.2696]
[1723321023643,1.91806,2606.8,2606.6,2.2696]
[1723321024717,1.91813,2606.7,2606.6,2.2696]
[1723321026558,2.301743,2606.7,2606.6,2.2696]
[1723321026759,2.301743,2606.7,2606.1,2.2696]
[1723321026927,1.91813,2606.7,2606.1,2.2696]
[1723321027127,31.96,2607.1,2606.1,2.2696]
[1723321027128,1.91836,2606.4,2606.1,2.2696]
[1723321028563,3.83677,2606.4,2606.1,2.2696]
[1723321028969,1.91844,2606.3,2606.1,2.2696]
[1723321034970,1.91836,2606.4,2606.1,2.2696]
[1723321035179,7.3,2606.7,2606.2,0.07673711]
[1723321035382,7.3,2606.7,2606.3,4.26975]
[1723321035697,7.3,2606.7,2606.4,2.3514]
[1723321038261,19.77,2606.8,2606.4,2.3514]
[1723321041346,19.77,2606.8,2606.4,4.26969]
[1723321041547,7.3,2607.1,2606.6,4.2696]
[1723321041751,1.9178,2607.2,2606.7,2.3514]
[1723321044622,3.83562,2607.2,2606.7,2.3514]
[1723321048674,1.91784,2607.1,2606.7,2.3514]
[1723321050318,0.07267813,2607.0,2606.7,2.3514]
[1723321050675,1.99060813,2607.0,2606.7,2.3514]
[1723321063858,1.91806,2606.8,2606.7,2.3514]
[1723321064148,0.07277057,2606.8,2606.7,2.3514]
[1723321065665,3.07687,2607.1,2606.7,2.3514]
[1723321065811,0.07262895,2606.8,2606.7,2.3514]
[1723321066156,0.07260839,2606.8,2606.7,2.3514]
[1723321066451,3.07687,2607.1,2606.7,2.3514]
[1723321066636,0.07264414,2606.8,2606.7,2.3514]
[1723321066837,3.07687,2607.1,2606.7,2.3514]
[1723321067320,0.07276155,2607.0,2606.7,2.3514]
[1723321068345,0.38772471,2607.0,2606.7,2.3514]
[1723321069059,2.30569471,2607.0,2606.7,2.3514]
[1723321069929,1.91806,2606.8,2606.7,2.3514]
[1723321070149,0.07250224,2606.8,2606.7,2.3514]
[1723321070319,1.99056224,2606.8,2606.7,2.3514]
[1723321073311,0.07250224,2606.8,2606.7,2.3514]
[1723321075540,1.99056224,2606.8,2606.7,2.3514]
[1723321075738,0.07250224,2606.8,2606.7,2.3514]
[1723321078332,1.99056224,2606.8,2606.7,2.3514]
[1723321080963,0.07250224,2606.8,2606.7,2.3514]
[1723321082561,1.91792,2607.0,2606.7,2.3514]
[1723321082759,0.07033627,2606.9,2606.7,2.3514]
[1723321083273,1.98833627,2606.9,2606.7,2.3514]
[1723321085878,3.14733627,2606.9,2606.3,2.4821]
[1723321086444,1.91814,2606.7,2606.3,2.4821]
[1723321086865,0.07007313,2606.6,2606.3,2.4821]
[1723321095783,1.98832313,2606.6,2606.3,2.4821]
[1723321095987,1.91829,2606.5,2606.3,2.4821]
[1723321096284,1.91854,2606.2,2605.7,2.2813]
[1723321096585,1.98572514,2606.1,2605.7,2.2813]
[1723321098187,0.06713514,2606.1,2605.7,2.2813]
[1723321103633,0.06713514,2606.1,2605.8,2.2813]
[1723321103938,0.06713514,2606.1,2606.0,6.11858]
[1723321104078,3.07702,2606.9,2606.4,2.2813]
[1723321104521,0.06258262,2606.8,2606.4,2.2813]
[1723321105135,0.06258262,2606.8,2606.5,2.2813]
[1723321108363,1.98064262,2606.8,2606.5,2.2813]
[1723321110264,0.06258262,2606.8,2606.5,2.2813]
[1723321113564,1.98064262,2606.8,2606.5,2.2813]
[1723321114202,2.48640188,2606.8,2606.5,2.2813]
[1723321114495,1.9182,2606.6,2606.5,2.2813]
[1723321115009,1.9809311,2606.6,2606.5,2.2813]
[1723321117794,0.0627311,2606.6,2606.5,2.2813]
[1723321118475,1.918,2606.9,2606.5,2.2813]
[1723321118974,0.06302158,2606.8,2606.5,2.2813]
[1723321121034,1.98109158,2606.8,2606.5,2.2813]
[1723321121217,0.38990916,2606.7,2606.5,2.2813]
[1723321121422,0.06294475,2606.6,2606.5,2.2813]
[1723321130242,3.07694,2607.0,2606.5,2.2813]
[1723321130438,0.06288501,2606.6,2606.5,2.2813]
[1723321130639,4.99491,2607.0,2606.5,2.2813]
[1723321130841,0.06286123,2606.6,2606.5,2.2813]
[1723321131125,0.06284909,2606.6,2606.5,2.2813]
[1723321131451,3.07694,2607.0,2606.5,2.2813]
[1723321131652,0.06267262,2606.6,2606.5,2.2813]
[1723321131825,3.07694,2607.0,2606.5,2.2813]
[1723321132026,0.37070442,2606.9,2606.5,2.2813]
[1723321133323,2.28868442,2606.9,2606.5,2.2813]
[1723321135965,1.91808,2606.8,2606.5,2.2813]
[1723321136235,0.06275446,2606.7,2606.5,2.2813]
[1723321136542,1.159,2606.6,2606.2,2.461]
[1723321136875,1.91811,2606.8,2606.2,2.461]
[1723321136876,1.91842,2606.3,2606.2,2.461]
[1723321137234,1.98085848,2606.3,2606.2,2.461]
[1723321142645,1.91862,2606.1,2605.6,2.461]
[1723321143094,0.06207344,2606.0,2605.6,2.461]
[1723321143579,1.91872,2605.9,2605.6,2.461]
[1723321143782,0.06205197,2605.8,2605.6,2.461]
[1723321145278,3.13986197,2605.8,2605.6,2.461]
[1723321145485,2.2328562,2605.7,2605.6,2.461]
[1723321145647,2.2328562,2605.7,2604.9,2.01709977]
[1723321145648,1.91903,2605.5,2605.4,2.461]
[1723321145867,1.91903,2605.5,2604.9,2.01709977]
[1723321145868,1.91914,2605.4,2605.2,2.461]
[1723321146173,0.06129978,2605.3,2605.2,2.461]
[1723321147273,1.98045978,2605.3,2605.2,2.461]
[1723321148613,1.91931,2605.1,2605.0,2.461]
[1723321148823,1.98059864,2605.1,2605.0,2.461]
[1723321149372,3.13959864,2605.1,2605.0,2.461]
[1723321150275,1.98059864,2605.1,2605.0,2.461]
[1723321152395,1.98059864,2605.1,2604.9,0.09767977]
[1723321152396,1.91938,2605.0,2604.9,0.09767977]
[1723321152599,2.37020595,2605.0,2604.9,0.09767977]
[1723321154599,0.06084009,2605.0,2604.9,2.50887977]
[1723321154831,1.159,2605.3,2604.9,2.50887977]
[1723321154984,0.06090386,2605.2,2604.9,2.50887977]
[1723321155192,1.91909,2605.4,2604.9,2.50887977]
[1723321155389,0.06098765,2605.3,2604.9,2.50887977]
[1723321156642,1.98015765,2605.3,2604.9,2.50887977]
[1723321157331,3.13915765,2605.3,2604.9,2.50887977]
[1723321165095,5.05837765,2605.3,2604.9,2.50887977]
[1723321165296,3.07835,2605.1,2604.9,0.09767977]
[1723321165734,0.06078724,2605.0,2604.9,0.09767977]
[1723321165939,0.06078724,2605.0,2604.9,2.54807977]
[1723321169609,1.98016724,2605.0,2604.9,2.54807977]
[1723321170316,0.06078724,2605.0,2604.9,2.54807977]
[1723321171701,1.159,2605.5,2604.9,2.54807977]
[1723321171930,0.05893051,2605.0,2604.9,2.54807977]
[1723321172258,0.05893775,2605.0,2604.9,2.54807977]
[1723321172399,3.07806,2605.5,2605.0,2.3347]
[1723321172751,0.05927292,2605.4,2605.0,2.3347]
[1723321174858,0.05927292,2605.4,2605.1,2.3559]
[1723321175216,9.21894,2605.6,2605.1,2.3559]
[1723321175540,0.05937804,2605.5,2605.2,1.91923]
[1723321175735,0.05937804,2605.5,2605.3,2.3559]
[1723321176139,0.05937804,2605.5,2605.4,4.27499]
[1723321176666,19.77,2605.8,2605.5,2.3559]
[1723321181174,1.91872,2605.9,2605.5,2.3559]
[1723321185482,0.05981241,2605.8,2605.5,2.3559]
[1723321185664,1.91865,2606.0,2605.5,2.3559]
[1723321185872,0.05989468,2605.9,2605.5,2.3559]
[1723321188375,1.97863468,2605.9,2605.5,2.3559]
[1723321192272,1.91887,2605.7,2605.5,2.3559]
[1723321192472,0.0596843,2605.6,2605.5,2.3559]
[1723321192693,1.9191,2605.4,2605.0,2.3829]
[1723321193073,0.05959037,2605.3,2605.0,2.3829]
[1723321193600,1.91894,2605.6,2605.0,2.3829]
[1723321193601,1.91894,2605.6,2605.1,2.3829]
[1723321193755,0.05950958,2605.2,2605.1,2.3829]
[1723321193955,1.91894,2605.6,2605.1,2.3829]
[1723321194200,3.83793,2605.6,2605.1,2.3829]
[1723321194354,0.05973912,2605.5,2605.1,2.3829]
[1723321195174,1.97874912,2605.5,2605.1,2.3829]
[1723321197689,3.89782912,2605.5,2605.1,2.3829]
[1723321198208,1.97874912,2605.5,2605.1,2.3829]
[1723321203407,0.05973912,2605.5,2605.1,2.3829]
[1723321203607,0.05973912,2605.5,2605.2,2.2535]
[1723321203941,0.05950709,2605.4,2605.2,2.2535]
[1723321204293,1.91895,2605.6,2605.2,2.2535]
[1723321204511,0.05940149,2605.3,2605.2,2.2535]
[1723321204712,1.91895,2605.6,2605.2,2.2535]
[1723321204900,0.05940149,2605.3,2605.2,2.2535]
[1723321205219,1.91895,2605.6,2605.2,2.2535]
[1723321205526,0.05956905,2605.5,2605.2,2.2535]
[1723321207428,1.97858905,2605.5,2605.2,2.2535]
[1723321208690,5.05764905,2605.5,2605.2,2.2535]
[1723321209021,3.13858905,2605.5,2605.2,2.2535]
[1723321209520,1.97858905,2605.5,2605.2,2.2535]
[1723321209699,0.05956905,2605.5,2605.4,2.4599]
[1723321210211,7.3,2605.8,2605.4,2.4599]
[1723321210385,0.05748939,2605.5,2605.4,2.4599]
[1723321210591,1.91891,2605.7,2605.4,2.4599]
[1723321210823,0.05746757,2605.5,2605.4,2.4599]
[1723321211036,1.91891,2605.7,2605.4,2.4599]
[1723321211188,0.05749136,2605.5,2605.4,2.4599]
[1723321211388,1.91891,2605.7,2605.4,2.4599]
[1723321211588,0.05746953,2605.5,2605.4,2.4599]
[1723321211801,3.07891,2605.7,2605.4,2.4599]
[1723321212126,1.91895,2605.6,2605.4,2.4599]
[1723321212313,1.97643345,2605.6,2605.4,2.4599]
[1723321212512,3.07901,2605.5,2605.4,2.4599]
[1723321212923,3.13643345,2605.5,2605.4,2.4599]
[1723321217617,1.21742345,2605.5,2605.4,2.4599]
[1723321218317,0.05742345,2605.5,2605.4,2.4599]
[1723321219975,1.97643345,2605.5,2605.4,2.4599]
[1723321221856,0.05742345,2605.5,2605.4,2.4599]
[1723321223124,3.07883,2605.8,2605.4,2.4599]
[1723321223838,0.05764248,2605.7,2605.4,2.4599]
[1723321224260,3.07883,2605.8,2605.4,2.4599]
[1723321224447,0.0575539,2605.6,2605.4,2.4599]
[1723321224649,3.07883,2605.8,2605.4,2.4599]
[1723321224852,0.05753258,2605.5,2605.4,2.4599]
[1723321225069,1.16,2605.8,2605.4,2.36466603]
[1723321225230,1.16,2605.8,2605.5,2.4635]
[1723321225831,1.91868,2606.0,2605.6,2.4635]
[1723321226031,3.07868,2606.0,2605.6,2.4635]
[1723321226539,1.91874,2605.9,2605.6,2.4635]
[1723321229153,4.99738,2606.0,2605.6,2.4635]
[1723321230433,1.97472982,2605.9,2605.6,2.4635]
[1723321232135,2.02298591,2605.9,2605.6,2.4635]
[1723321232949,3.07884,2605.8,2605.6,2.4635]
[1723321233139,1.91901,2605.6,2605.0,2.3484]
[1723321233336,1.91901,2605.6,2605.0,2.78494798]
[1723321233541,0.10396454,2605.5,2605.2,2.3484]
[1723321237375,2.02302454,2605.5,2605.2,2.3484]
[1723321238700,1.91909,2605.4,2605.2,2.3484]
[1723321238996,0.10388901,2605.3,2605.2,2.3484]
[1723321239303,1.91899,2605.6,2605.2,2.3484]
[1723321239456,0.10391228,2605.3,2605.2,2.3484]
[1723321239958,0.10392543,2605.3,2605.2,2.3484]
[1723321240155,1.91899,2605.6,2605.2,2.3484]
[1723321240387,0.10392543,2605.3,2605.2,2.3484]
[1723321240555,1.91899,2605.6,2605.2,2.3484]
[1723321240756,0.10392543,2605.3,2605.2,2.3484]
[1723321240953,3.83798,2605.6,2605.2,2.3484]
[1723321241177,0.10392543,2605.3,2605.2,2.3484]
[1723321241380,1.91899,2605.6,2605.2,2.3484]
[1723321241571,0.1039065,2605.3,2605.2,2.3484]
[1723321241782,1.91899,2605.6,2605.2,2.3484]
[1723321241986,0.10392543,2605.3,2605.2,2.3484]
[1723321242187,3.07883,2605.8,2605.2,2.3484]
[1723321242188,1.91888,2605.7,2605.2,2.3484]
[1723321242393,0.10383864,2605.3,2605.2,2.3484]
[1723321242585,1.91888,2605.7,2605.2,2.3484]
[1723321242794,0.1037972,2605.3,2605.2,2.3484]
[1723321243095,1.91888,2605.7,2605.2,2.3484]
[1723321243258,0.10379913,2605.3,2605.2,2.3484]
[1723321243461,1.91888,2605.7,2605.2,2.3484]
[1723321243659,0.10382239,2605.3,2605.2,2.3484]
[1723321243859,1.91888,2605.7,2605.2,2.3484]
[1723321244091,0.10384565,2605.3,2605.2,2.3484]
[1723321244512,1.91888,2605.7,2605.2,2.3484]
[1723321244661,0.10384565,2605.3,2605.2,2.3484]
[1723321245003,0.10372934,2605.3,2605.2,2.3484]
[1723321245296,1.91888,2605.7,2605.2,2.3484]
[1723321245517,0.10377586,2605.3,2605.2,2.3484]
[1723321245798,1.91895,2605.6,2605.2,2.3484]
[1723321245972,0.10374418,2605.3,2605.2,2.3484]
[1723321246179,1.91895,2605.6,2605.2,2.3484]
[1723321246379,0.1037461,2605.3,2605.2,2.3484]
[1723321246701,1.91895,2605.6,2605.2,2.3484]
[1723321246912,0.10374803,2605.3,2605.2,2.3484]
[1723321247229,1.91895,2605.6,2605.2,2.3484]
[1723321247403,0.10385231,2605.3,2605.2,2.3484]
[1723321247699,1.91895,2605.6,2605.2,2.3484]
[1723321247906,0.10385231,2605.3,2605.2,2.3484]
[1723321248065,1.91895,2605.6,2605.2,2.3484]
[1723321248266,0.10380435,2605.3,2605.2,2.3484]
[1723321248670,1.91895,2605.6,2605.2,2.3484]
[1723321248868,0.1038082,2605.3,2605.2,2.3484]
[1723321249377,1.91895,2605.6,2605.2,2.3484]
[1723321249604,0.10381012,2605.3,2605.2,2.3484]
[1723321249799,1.91895,2605.6,2605.2,2.3484]
[1723321250103,0.10381205,2605.3,2605.2,2.3484]
[1723321250267,1.91895,2605.6,2605.2,2.3484]
[1723321250470,0.10379071,2605.3,2605.2,2.3484]
[1723321250704,1.91895,2605.6,2605.2,2.3484]
[1723321250905,0.10369765,2605.3,2605.2,2.3484]
[1723321251125,1.91895,2605.6,2605.2,2.3484]
[1723321251688,0.10392753,2605.5,2605.2,2.3484]
[1723321254186,2.02295753,2605.5,2605.2,2.3484]
[1723321254426,2.41714828,2605.5,2605.2,2.3484]
[1723321255936,1.91916,2605.3,2605.2,2.3484]
[1723321256295,2.02284434,2605.3,2605.2,2.3484]
[1723321257256,2.02284434,2605.3,2605.0,2.49]
[1723321257387,3.07928,2605.2,2605.0,2.49]
[1723321257719,3.18286106,2605.2,2605.0,2.49]
[1723321258289,1.91931,2605.1,2605.0,2.49]
[1723321258510,2.02291279,2605.1,2605.0,2.49]
[1723321261137,0.10360279,2605.1,2605.0,2.49]
[1723321262800,2.02291279,2605.1,2605.0,2.49]
[1723321263323,3.94222279,2605.1,2605.0,2.49]
[1723321263636,2.02291279,2605.1,2605.0,2.49]
[1723321269411,0.10360279,2605.1,2605.0,2.49]
[1723321269606,2.02291279,2605.1,2605.0,2.49]
[1723321274229,0.10360279,2605.1,2605.0,2.49]